[Event "75th Argentine Women-ch 2024"]
[Site "Buenos Aires"]
[Date "2024.11.26"]
[Round "5.1"]
[White "Adam, Ernestina"]
[Black "Campos, Maria Jose"]
[Result "1/2-1/2"]
[ECO "C55"]
[WhiteElo "2154"]
[BlackElo "2272"]
[Annotator "RC"]
[PlyCount "105"]
[EventDate "2024.11.21"]
[EventType "swiss"]
[EventCountry "ARG"]
[SourceTitle "playchess.com"]
[Source "ChessBase"]
[SourceQuality "1"]
[TimeControl "5400+30"]

1. e4 {[%emt 0:00:03]} e5 {[%emt 0:00:29]} 2. Nf3 {[%emt 0:00:08]} Nc6 {[%emt 0:00:50]} 3. Bc4 {[%emt 0:00:07]} Nf6 {[%emt 0:00:24]} 4. d3 {[%emt 0:00:24]} h6 {[%emt 0:01:22]} 5. O-O {[%emt 1:32:18]} d6 {[%emt 0:00:32]} 6. a4 {[%emt 0:00:00]} g6 {[%emt 1:29:53]} 7. Nc3 {[%emt 0:00:00]} Bg7 {[%emt 0:00:00]} 8. a5 {[%emt 0:00:00]} a6 {[%emt 0:00:00]} 9. Re1 {[%emt 0:00:00]} O-O {[%emt 0:01:30]} 10. Nd5 {[%emt 0:00:00]} Nxd5 {[%emt 0:00:00]} 11. Bxd5 {[%emt 0:00:00]} Nxa5 {[%emt 0:00:00]} 12. Rxa5 {[%emt 0:00:00]} c6 {[%emt 0:00:00]} 13. Ra2 {[%emt 0:00:00]} cxd5 {[%emt 0:00:00]} 14. exd5 {[%emt 0:00:00]} Re8 {[%emt 0:00:00]} 15. c4 {[%emt 0:00:00]} b5 {[%emt 0:00:00]} 16. Be3 {[%emt 0:00:00]} Rb8 {[%emt 0:00:00]} 17. b3 {[%emt 0:00:00]} Qc7 {[%emt 0:00:00]} 18. Qc1 {[%emt 0:00:00]} bxc4 {[%emt 0:00:00]} 19. bxc4 {[%emt 0:00:00]} Kh7 {[%emt 0:00:00]} 20. h3 {[%emt 0:00:00]} f5 {[%emt 0:00:00]} 21. Bd2 {[%emt 0:00:00]} Rb3 {[%emt 0:00:00]} 22. Ra3 {[%emt 0:00:00]} Rb8 {[%emt 0:00:00]} 23. Bc3 {[%emt 0:00:00]} Re7 {[%emt 0:00:00]} 24. Nd2 {[%emt 0:00:00]} h5 {[%emt 0:00:00]} 25. Nb3 {[%emt 0:00:00]} Bh6 {[%emt 0:00:00]} 26. Qa1 {[%emt 0:00:00]} e4 {[%emt 0:00:00]} 27. Nd4 {[%emt 0:00:00]} Re8 {[%emt 0:00:00]} 28. Nc6 {[%emt 0:00:00]} Ra8 {[%emt 0:00:00]} 29. dxe4 {[%emt 0:01:13]} fxe4 {[%emt 0:00:00]} 30. Bd4 {[%emt 0:02:32]} Bb7 {[%emt 0:00:00]} 31. Na5 {[%emt 0:00:07]} Bc8 {[%emt 0:00:00]} 32. Qc3 {[%emt 0:03:49]} Bd7 {[%emt 0:00:00]} 33. Qg3 {[%emt 0:01:02]} Rab8 {[%emt 0:00:00]} 34. c5 {[%emt 0:01:30]} Bf8 {[%emt 0:00:00]} 35. c6 {[%emt 0:00:47]} Bc8 {[%emt 0:00:00]} 36. f3 {[%emt 0:02:16]} Rb5 {[%emt 0:00:00]} 37. Bc3 {[%emt 0:01:38]} Rxd5 {[%emt 0:00:00]} 38. fxe4 {[%emt 0:00:18]} Rc5 {[%emt 0:00:00]} 39. Kh1 {[%emt 0:00:45]} Be6 {[%emt 0:00:33]} 40. Rb1 {[%emt 0:00:15]} Rb5 {[%emt 0:01:09]} 41. Rxb5 {[%emt 0:00:55]} axb5 {[%emt 0:00:01]} 42. Bb4 {[%emt 0:00:14]} Ra8 {[%emt 0:02:36]} 43. Qf4 {[%emt 0:01:03]} Be7 {[%emt 0:00:55]} 44. Qg3 {[%emt 0:00:20]} h4 {[%emt 0:01:05]} 45. Qd3 {[%emt 0:00:32]} Rf8 {[%emt 0:01:27]} 46. Ra1 {[%emt 0:00:28]} Rf4 {[%emt 0:03:01]} 47. Rf1 {[%emt 0:00:33]} Rxf1+ {[%emt 0:00:45]} 48. Qxf1 {[%emt 0:00:01]} Qb6 {[%emt 0:04:08]} 49. Qd1 {[%emt 0:00:39]} Qc7 {[%emt 0:01:35]} 50. Qd3 {[%emt 0:00:26]} Qb6 {[%emt 0:00:26]} 51. Qd1 {[%emt 0:00:42]} Qc7 {[%emt 0:00:55]} 52. Qd3 {[%emt 0:00:04]} Qb6 {[%emt 0:00:54]} 53. Qd1 {[%emt 0:00:18]} 1/2-1/2

[Event "75th Argentine Women-ch 2024"]
[Site "Buenos Aires"]
[Date "2024.11.26"]
[Round "5.2"]
[White "Zuriel, Marisa"]
[Black "Brizzi, Milagros Tatiana"]
[Result "1/2-1/2"]
[ECO "B14"]
[WhiteElo "2163"]
[BlackElo "2114"]
[Annotator "RC"]
[PlyCount "77"]
[EventDate "2024.11.21"]
[EventType "swiss"]
[EventCountry "ARG"]
[SourceTitle "playchess.com"]
[Source "ChessBase"]
[SourceQuality "1"]
[TimeControl "5400+30"]

1. e4 {[%emt 0:02:56]} c6 {[%emt 0:00:10]} 2. d4 {[%emt 0:00:25]} d5 {[%emt 0:00:20]} 3. exd5 {[%emt 0:00:25]} cxd5 {[%emt 0:00:10]} 4. c4 {[%emt 0:00:13]} Nf6 {[%emt 0:00:42]} 5. Nc3 {[%emt 0:00:10]} Nc6 {[%emt 0:00:50]} 6. Nf3 {[%emt 0:00:09]} e6 {[%emt 0:11:01]} 7. c5 {[%emt 0:00:09]} Be7 {[%emt 0:00:57]} 8. Bb5 {[%emt 0:00:27]} Ne4 {[%emt 0:08:34]} 9. O-O {[%emt 0:03:10]} O-O {[%emt 0:01:21]} 10. Re1 {[%emt 0:04:50]} Nxc3 {[%emt 0:06:25]} 11. bxc3 {[%emt 0:00:07]} Bd7 {[%emt 0:02:31]} 12. Rb1 {[%emt 0:03:26]} b6 {[%emt 0:12:22]} 13. cxb6 {[%emt 0:09:11]} axb6 {[%emt 0:03:14]} 14. Qe2 {[%emt 0:01:12]} Qc7 {[%emt 0:09:33]} 15. Bd3 {[%emt 0:10:39]} f5 {[%emt 0:14:12]} 16. Bb5 {[%emt 0:27:01]} Bd6 {[%emt 0:02:13]} 17. c4 {[%emt 0:01:36]} Rae8 {[%emt 0:05:21]} 18. Bb2 {[%emt 0:01:55]} Na5 {[%emt 0:02:50]} 19. Bxd7 {[%emt 0:20:53]} Qxd7 {[%emt 0:00:06]} 20. Nd2 {[%emt 0:00:05]} Bb4 {[%emt 0:01:28]} 21. cxd5 {[%emt 0:01:14]} exd5 {[%emt 0:00:11]} 22. Qd3 {[%emt 0:00:10]} Rxe1+ {[%emt 0:03:54]} 23. Rxe1 {[%emt 0:00:04]} Bxd2 {[%emt 0:00:25]} 24. Qxd2 {[%emt 0:00:05]} Re8 {[%emt 0:00:20]} 25. Bc3 {[%emt 0:03:44]} Nc4 {[%emt 0:00:25]} 26. Qf4 {[%emt 0:01:06]} Rxe1+ {[%emt 0:04:18]} 27. Bxe1 {[%emt 0:00:03]} Qe6 {[%emt 0:01:16]} 28. Bc3 {[%emt 0:01:45]} Qe4 {[%emt 0:03:12]} 29. Qb8+ {[%emt 0:03:00]} Kf7 {[%emt 0:00:06]} 30. h3 {[%emt 0:00:46]} Qc2 {[%emt 0:04:13]} 31. Qc7+ {[%emt 0:01:49]} Ke6 {[%emt 0:00:37]} 32. Qc6+ {[%emt 0:02:04]} Nd6 {[%emt 0:00:49]} 33. a4 {[%emt 0:01:02]} h5 {[%emt 0:01:06]} 34. h4 {[%emt 0:00:52]} g6 {[%emt 0:00:58]} 35. Qc7 {[%emt 0:00:33]} Qc1+ {[%emt 0:00:53]} 36. Kh2 {[%emt 0:00:06]} Qf4+ {[%emt 0:00:26]} 37. Kg1 {[%emt 0:00:01]} Qc1+ {[%emt 0:00:15]} 38. Kh2 {[%emt 0:00:01]} Qf4+ {[%emt 0:00:46]} 39. Kg1 {[%emt 0:02:36]} 1/2-1/2

[Event "75th Argentine Women-ch 2024"]
[Site "Buenos Aires"]
[Date "2024.11.26"]
[Round "5.3"]
[White "Maggiolo, Elisa"]
[Black "Nejanky, Maisa"]
[Result "0-1"]
[ECO "A20"]
[WhiteElo "1922"]
[BlackElo "1928"]
[Annotator "RC"]
[PlyCount "138"]
[EventDate "2024.11.21"]
[EventType "swiss"]
[EventCountry "ARG"]
[SourceTitle "playchess.com"]
[Source "ChessBase"]
[SourceQuality "1"]
[TimeControl "5400+30"]

1. c4 {[%emt 0:00:38]} e5 {[%emt 0:01:09]} 2. Nf3 {[%emt 0:00:29]} Nc6 {[%emt 0:00:46]} 3. d4 {[%emt 0:01:36]} exd4 {[%emt 0:00:59]} 4. Nxd4 {[%emt 0:00:54]} Nf6 {[%emt 0:01:15]} 5. Nxc6 {[%emt 0:01:19]} bxc6 {[%emt 1:28:51]} 6. Qa4 {[%emt 1:28:34]} Bc5 {[%emt 0:00:30]} 7. Nc3 {[%emt 0:00:00]} O-O {[%emt 0:00:00]} 8. e3 {[%emt 0:00:00]} Qe7 {[%emt 0:00:00]} 9. Bd3 {[%emt 0:00:00]} Rb8 {[%emt 0:00:00]} 10. O-O {[%emt 0:00:00]} d5 {[%emt 0:00:00]} 11. cxd5 {[%emt 0:00:00]} cxd5 {[%emt 0:00:00]} 12. Qh4 {[%emt 0:00:00]} Rb4 {[%emt 0:00:00]} 13. f4 {[%emt 0:00:00]} Bxe3+ {[%emt 0:00:00]} 14. Kh1 {[%emt 0:00:00]} h6 {[%emt 0:00:00]} 15. Nxd5 {[%emt 0:00:00]} Nxd5 {[%emt 0:00:00]} 16. Qxe7 {[%emt 0:00:00]} Nxe7 {[%emt 0:00:00]} 17. Bxe3 {[%emt 0:00:00]} Rxb2 {[%emt 0:00:00]} 18. Bc5 {[%emt 0:00:00]} Rd8 {[%emt 0:00:00]} 19. Be4 {[%emt 0:00:00]} Nd5 {[%emt 0:00:48]} 20. Bxa7 {[%emt 0:00:00]} Nc3 {[%emt 0:01:25]} 21. Bf3 {[%emt 0:00:00]} Rxa2 {[%emt 0:01:51]} 22. Rxa2 {[%emt 0:00:00]} Nxa2 {[%emt 0:00:02]} 23. Re1 {[%emt 0:00:00]} Be6 {[%emt 0:00:29]} 24. g4 {[%emt 0:02:12]} Nc3 {[%emt 0:02:15]} 25. Rc1 {[%emt 0:01:56]} Nb5 {[%emt 0:00:19]} 26. Bf2 {[%emt 0:01:58]} Bd5 {[%emt 0:00:30]} 27. Kg2 {[%emt 0:00:02]} f6 {[%emt 0:00:43]} 28. Rc5 {[%emt 0:01:36]} Bxf3+ {[%emt 0:00:05]} 29. Kxf3 {[%emt 0:00:03]} Rb8 {[%emt 0:00:33]} 30. Ke4 {[%emt 0:04:13]} Nd6+ {[%emt 0:02:14]} 31. Kd5 {[%emt 0:00:00]} Ne8 {[%emt 0:00:39]} 32. Ke6 {[%emt 0:00:00]} Rb2 {[%emt 0:00:15]} 33. Bg3 {[%emt 0:00:00]} Re2+ {[%emt 0:00:13]} 34. Kd7 {[%emt 0:00:00]} Kf7 {[%emt 0:00:14]} 35. f5 {[%emt 0:00:28]} Rd2+ {[%emt 0:00:16]} 36. Kc8 {[%emt 0:00:53]} Rd4 {[%emt 0:00:39]} 37. Bxc7 {[%emt 0:01:08]} Rxg4 {[%emt 0:00:34]} 38. Bg3 {[%emt 0:00:22]} Rd4 {[%emt 0:00:18]} 39. Ra5 {[%emt 0:00:47]} Nd6+ {[%emt 0:00:41]} 40. Kb8 {[%emt 0:00:17]} Ne4 {[%emt 0:01:05]} 41. Bc7 {[%emt 0:00:57]} h5 {[%emt 0:00:36]} 42. Bb6 {[%emt 0:00:35]} Rd2 {[%emt 0:00:27]} 43. Ra7+ {[%emt 0:00:10]} Kg8 {[%emt 0:00:06]} 44. Bc7 {[%emt 0:00:12]} Rd5 {[%emt 0:00:12]} 45. Ra4 {[%emt 0:00:14]} Nc5 {[%emt 0:00:41]} 46. Rf4 {[%emt 0:00:34]} Na6+ {[%emt 0:00:17]} 47. Kb7 {[%emt 0:00:01]} Nxc7 {[%emt 0:00:11]} 48. Kxc7 {[%emt 0:00:01]} Kh7 {[%emt 0:00:10]} 49. Kc6 {[%emt 0:00:13]} Re5 {[%emt 0:00:19]} 50. Kd6 {[%emt 0:00:06]} Re2 {[%emt 0:01:04]} 51. h4 {[%emt 0:00:01]} Kg8 {[%emt 0:01:24]} 52. Ra4 {[%emt 0:00:34]} Kh7 {[%emt 0:00:30]} 53. Kd7 {[%emt 0:00:22]} Kh6 {[%emt 0:00:44]} 54. Ra8 {[%emt 0:00:14]} g6 {[%emt 0:00:29]} 55. Ra6 {[%emt 0:00:50]} Kg7 {[%emt 0:00:10]} 56. fxg6 {[%emt 0:00:20]} Kxg6 {[%emt 0:00:06]} 57. Ra4 {[%emt 0:00:00]} Kf5 {[%emt 0:00:23]} 58. Kd6 {[%emt 0:02:41]} Re4 {[%emt 0:00:22]} 59. Ra5+ {[%emt 0:00:13]} Kg4 {[%emt 0:00:22]} 60. Ra8 {[%emt 0:00:01]} f5 {[%emt 0:00:40]} 61. Kd5 {[%emt 0:00:01]} Rb4 {[%emt 0:00:25]} 62. Ke5 {[%emt 0:00:10]} Rb5+ {[%emt 0:00:09]} 63. Kd4 {[%emt 0:01:06]} f4 {[%emt 0:00:14]} 64. Rg8+ {[%emt 0:00:29]} Kxh4 {[%emt 0:00:38]} 65. Ke4 {[%emt 0:00:02]} Rg5 {[%emt 0:00:45]} 66. Rf8 {[%emt 0:00:08]} Kg3 {[%emt 0:00:16]} 67. Ra8 {[%emt 0:00:30]} f3 {[%emt 0:00:29]} 68. Rf8 {[%emt 0:02:47]} f2 {[%emt 0:00:18]} 69. Ke3 {[%emt 0:00:21]} Re5+ {[%emt 0:02:55]} 0-1

[Event "75th Argentine Women-ch 2024"]
[Site "Buenos Aires"]
[Date "2024.11.26"]
[Round "5.4"]
[White "Amura, Claudia"]
[Black "Bosco, Giuliana"]
[Result "1-0"]
[ECO "A61"]
[WhiteElo "2183"]
[BlackElo "1953"]
[Annotator "RC"]
[PlyCount "71"]
[EventDate "2024.11.21"]
[EventType "swiss"]
[EventCountry "ARG"]
[SourceTitle "playchess.com"]
[Source "ChessBase"]
[SourceQuality "1"]
[TimeControl "5400+30"]

1. d4 {[%emt 0:00:16]} Nf6 {[%emt 0:00:12]} 2. c4 {[%emt 0:00:39]} c5 {[%emt 0:00:10]} 3. d5 {[%emt 0:00:46]} e6 {[%emt 0:00:10]} 4. Nc3 {[%emt 0:00:30]} exd5 {[%emt 0:00:11]} 5. cxd5 {[%emt 0:00:07]} d6 {[%emt 0:00:11]} 6. Nf3 {[%emt 0:00:22]} g6 {[%emt 0:00:26]} 7. Bf4 {[%emt 0:00:38]} Bg7 {[%emt 0:00:49]} 8. e3 {[%emt 0:00:17]} O-O {[%emt 0:00:35]} 9. h3 {[%emt 0:00:04]} Ne8 {[%emt 0:04:52]} 10. Be2 {[%emt 0:07:26]} Nd7 {[%emt 0:04:36]} 11. O-O {[%emt 0:02:19]} Ne5 {[%emt 0:00:39]} 12. Nd2 {[%emt 0:07:58]} Nc7 {[%emt 0:05:55]} 13. a4 {[%emt 0:06:14]} b6 {[%emt 0:03:51]} 14. Bg3 {[%emt 0:11:29]} f5 {[%emt 0:06:46]} 15. f4 {[%emt 0:02:30]} Nf7 {[%emt 0:03:13]} 16. Nc4 {[%emt 0:12:56]} Re8 {[%emt 0:23:30]} 17. Bf2 {[%emt 0:00:50]} Rb8 {[%emt 0:05:06]} 18. Qd2 {[%emt 0:09:42]} a6 {[%emt 0:08:00]} 19. Bf3 {[%emt 0:01:41]} b5 {[%emt 0:12:10]} 20. axb5 {[%emt 0:00:07]} Nxb5 {[%emt 0:00:06]} 21. Na5 {[%emt 0:04:35]} Qf6 {[%emt 0:02:16]} 22. Nc6 {[%emt 0:06:08]} Rb6 {[%emt 0:02:35]} 23. Na4 {[%emt 0:00:16]} Rb7 {[%emt 0:00:15]} 24. Rac1 {[%emt 0:00:58]} g5 {[%emt 0:02:13]} 25. g3 {[%emt 0:01:39]} Nh6 {[%emt 0:02:36]} 26. Bg2 {[%emt 0:00:50]} Nf7 {[%emt 0:02:51]} 27. b4 {[%emt 0:02:22]} cxb4 {[%emt 0:02:32]} 28. Qxb4 {[%emt 0:00:28]} Bd7 {[%emt 0:03:00]} 29. Qa5 {[%emt 0:00:56]} Ra8 {[%emt 0:01:10]} 30. Nb6 {[%emt 0:00:16]} Nc3 {[%emt 0:02:02]} 31. Nxa8 {[%emt 0:03:56]} Ne2+ {[%emt 0:00:18]} 32. Kh2 {[%emt 0:00:09]} Nxc1 {[%emt 0:00:06]} 33. Rxc1 {[%emt 0:00:01]} Qb2 {[%emt 0:00:09]} 34. Rf1 {[%emt 0:00:09]} Qb5 {[%emt 0:01:20]} 35. Qxb5 {[%emt 0:00:41]} Rxb5 {[%emt 0:00:01]} 36. Nc7 {[%emt 0:00:21]} 1-0

[Event "75th Argentine Women-ch 2024"]
[Site "Buenos Aires"]
[Date "2024.11.26"]
[Round "5.5"]
[White "Herrera, Solange"]
[Black "Alvarez, Mia Morena"]
[Result "1/2-1/2"]
[ECO "D00"]
[WhiteElo "1880"]
[BlackElo "1653"]
[Annotator "NA RC"]
[PlyCount "74"]
[EventDate "2024.11.21"]
[EventType "swiss"]
[EventCountry "ARG"]
[SourceTitle "playchess.com"]
[Source "ChessBase"]
[SourceQuality "1"]
[TimeControl "5400+30"]

1. d4 {[%emt 0:00:25]} d5 {[%emt 0:00:11]} 2. e3 {[%emt 0:00:10]} Nf6 {[%emt 0:00:18]} 3. Bd3 {[%emt 0:01:57]} c5 {[%emt 0:00:57]} 4. c3 {[%emt 0:00:07]} Nc6 {[%emt 0:00:18]} 5. f4 {[%emt 0:00:09]} Bg4 {[%emt 0:00:27]} 6. Nf3 {[%emt 0:02:09]} e6 {[%emt 0:00:55]} 7. O-O {[%emt 0:00:27] 7.0-0 is better than 7.Nbd2.} Be7 {[%emt 0:01:33] D00: 1 d4 d5: Unusual lines.} 8. Nbd2 {[%emt 0:00:32]} O-O {[%emt 0:00:59]} 9. Qe1 {[%emt 0:02:34]} Bf5 {[%emt 0:00:31]} 10. Qe2 {[%emt 0:03:06]} Rc8 {[%emt 0:02:18]} 11. Ne5 {[%emt 0:00:55]} Qc7 {[%emt 0:01:05]} 12. h3 $146 {[%emt 0:01:17]} ({Predecessor:} 12. Kh1 Rfe8 13. Rg1 Bf8 14. g4 Bxd3 15. Qxd3 Nd7 16. Rg3 f6 17. Nxd7 Qxd7 18. Nf3 {0-1 Roose,C (1776)-Fecker,N (2396) Wch U20 Blitz 2023 (1)}) 12... Bxd3 {[%emt 0:06:11]} 13. Qxd3 {[%emt 0:00:10]} c4 {[%emt 0:00:15]} 14. Qe2 {[%emt 0:00:07]} b5 {[%emt 0:05:37]} 15. Qf3 {[%emt 0:01:51]} b4 {[%emt 0:09:29]} 16. e4 {[%emt 0:05:48]} a5 {[%emt 0:15:30]} 17. g4 {[%emt 0:04:10]} Nxe5 {[%emt 0:12:42]} 18. fxe5 {[%emt 0:00:14]} dxe4 {[%emt 0:00:17]} 19. Nxe4 {[%emt 0:00:36]} Nxe4 {[%emt 0:00:23]} 20. Qxe4 {[%emt 0:00:59]} f5 {[%emt 0:13:26]} 21. gxf5 {[%emt 0:02:15]} exf5 {[%emt 0:00:09]} 22. Rxf5 {[%emt 0:00:29]} Qd7 $18 {[%emt 0:02:08]} ({Black should play} 22... Rxf5 $14 23. Qxf5 Rf8) 23. Rxf8+ {[%emt 0:24:30]} Rxf8 {[%emt 0:00:09]} 24. Qg2 {[%emt 0:00:13]} Qe6 {[%emt 0:06:44]} 25. Bd2 {[%emt 0:01:51]} h6 {[%emt 0:02:53]} 26. Qg4 {[%emt 0:08:30]} Qc6 {[%emt 0:02:00]} 27. Rf1 {[%emt 0:03:20]} Rxf1+ {[%emt 0:03:06]} 28. Kxf1 {[%emt 0:00:03]} Qh1+ {[%emt 0:00:17]} 29. Ke2 {[%emt 0:00:05]} Qc6 {[%emt 0:01:10]} 30. Qf5 {[%emt 0:07:01]} Qg2+ {[%emt 0:01:12]} 31. Kd1 {[%emt 0:00:10]} Qh1+ {[%emt 0:02:12]} 32. Ke2 {[%emt 0:07:16]} Qg2+ {[%emt 0:01:42]} 33. Kd1 {[%emt 0:03:55]} Qh1+ {[%emt 0:01:40]} 34. Ke2 {[%emt 0:03:10]} Qg2+ {[%emt 0:00:33]} 35. Ke1 {[%emt 0:17:29]} Bh4+ {[%emt 0:08:43]} 36. Kd1 Qg1+ {[%emt 0:00:30]} 37. Kc2 {[%emt 0:01:00]} b3+ {[%emt 0:00:30]} 1/2-1/2

[Event "75th Argentine Women-ch 2024"]
[Site "Buenos Aires"]
[Date "2024.11.25"]
[Round "5.6"]
[White "Montiel Marin, Micaela Agustina"]
[Black "Perez Lascano, Lucila"]
[Result "1-0"]
[ECO "E73"]
[WhiteElo "1880"]
[BlackElo "1593"]
[Annotator "NA RC"]
[PlyCount "64"]
[EventDate "2024.11.21"]
[EventType "swiss"]
[EventCountry "ARG"]
[SourceTitle "playchess.com"]
[Source "ChessBase"]
[SourceQuality "1"]
[TimeControl "5400+30"]

1. d4 {[%emt 0:00:06]} Nf6 {[%emt 0:00:07]} 2. c4 {[%emt 0:00:04]} g6 {[%emt 0:00:10]} 3. Nc3 {[%emt 0:00:05]} Bg7 {[%emt 0:00:07]} 4. e4 {[%emt 0:00:05]} d6 {[%emt 0:00:31]} 5. Be2 {[%emt 0:00:09]} O-O {[%emt 0:00:20]} 6. Bg5 {[%emt 0:00:11]} e5 {[%emt 0:01:58]} 7. dxe5 {[%emt 0:00:07]} dxe5 {[%emt 0:00:14]} 8. Qxd8 {[%emt 0:00:32]} Rxd8 {[%emt 0:00:07]} 9. Nd5 {[%emt 1:33:41]} Nxd5 {[%emt 0:04:53] E73: King's Indian: Averbakh Variation without 6...c5.} 10. Bxd8 {[%emt 0:00:00]} Nf4 {[%emt 0:07:00]} 11. O-O-O {[%emt 0:01:00]} Ne6 {[%emt 1:20:33] [#]} 12. Bxc7 $1 {[%emt 0:01:30]} Nc6 {[%emt 0:00:00]} 13. Bd6 {[%emt 0:00:00]} Ned4 {[%emt 0:00:00]} 14. Bc5 {[%emt 0:00:00]} Be6 {[%emt 0:00:00]} 15. Bd3 {[%emt 0:00:00]} b5 $2 {[%emt 0:02:00]} (15... b6 {was worth a try.}) 16. cxb5 {[%emt 0:00:00]} Bxa2 {[%emt 0:00:00]} 17. b4 {[%emt 0:00:00]} Nb3+ {[%emt 0:00:00]} 18. Kb2 {[%emt 0:00:00]} Nxc5 {[%emt 0:00:00]} 19. bxc6 {[%emt 0:03:30]} Nxd3+ $18 {[%emt 0:00:00]} 20. Rxd3 {[%emt 0:00:00]} Bc4 {[%emt 0:02:30]} 21. Rc3 {[%emt 0:01:00]} Bf1 {[%emt 0:00:00]} 22. Nf3 {[%emt 0:00:00]} Bxg2 {[%emt 0:00:00]} 23. Rd1 {[%emt 0:00:00]} Bf6 {[%emt 0:00:00]} 24. Kb3 {[%emt 0:00:00]} Bh3 {[%emt 0:00:00]} 25. b5 {[%emt 0:00:00]} Be6+ {[%emt 0:00:00]} 26. Kb4 {[%emt 0:00:00]} Be7+ {[%emt 0:00:00]} 27. Ka5 {[%emt 0:00:00]} Bc8 {[%emt 0:00:00]} 28. c7 {[%emt 0:00:00]} f6 {[%emt 0:00:00]} 29. Rd8+ {[%emt 0:00:00]} Kf7 {[%emt 0:00:00]} 30. Rxc8 {[%emt 0:00:00]} Rxc8 {[%emt 0:00:00]} 31. Ka6 {[%emt 0:00:00]} Ke8 {[%emt 0:00:00]} 32. Kb7 {[%emt 0:00:00]} Kd7 {[%emt 0:00:00]} 1-0

[Event "75th Argentine Women-ch 2024"]
[Site "Buenos Aires"]
[Date "2024.11.26"]
[Round "5.7"]
[White "Ramirez, Marysol"]
[Black "Quiroga Ortiz, Isabella"]
[Result "1-0"]
[ECO "B07"]
[WhiteElo "1824"]
[BlackElo "1508"]
[Annotator "NA RC"]
[PlyCount "91"]
[EventDate "2024.11.21"]
[EventType "swiss"]
[EventCountry "ARG"]
[SourceTitle "playchess.com"]
[Source "ChessBase"]
[SourceQuality "1"]
[TimeControl "5400+30"]

1. d4 {[%emt 0:00:03]} Nf6 {[%emt 0:03:12]} 2. Bf4 {[%emt 0:00:13]} g6 {[%emt 0:00:44]} 3. Nc3 {[%emt 0:00:13]} Bg7 {[%emt 0:00:08]} 4. e4 {[%emt 0:00:23]} d6 {[%emt 0:00:11]} 5. Qd2 {[%emt 0:00:16]} Nbd7 {[%emt 0:00:52]} 6. O-O-O {[%emt 0:01:33] B07: Pirc Defence: Miscellaneous Systems.} h6 {[%emt 0:03:15]} 7. h4 {[%emt 0:02:42]} Nh5 {[%emt 0:05:40]} (7... a6 $1 $14 {feels stronger.}) 8. Be3 {[%emt 0:14:22]} e5 {[%emt 0:08:34]} 9. g4 {[%emt 0:06:01]} exd4 {[%emt 0:03:38]} 10. Bxd4 {[%emt 0:02:31]} Bxd4 {[%emt 0:06:57]} 11. Qxd4 {[%emt 0:00:36]} Nhf6 {[%emt 0:00:09]} 12. f4 {[%emt 0:01:56]} Rh7 {[%emt 0:03:14]} 13. e5 {[%emt 0:17:44]} Nxg4 {[%emt 0:08:06]} 14. exd6 {[%emt 0:00:27]} c5 {[%emt 0:00:26]} (14... Kf8 $142 15. Bh3 c5) 15. Qe4+ {[%emt 0:17:57]} Kf8 {[%emt 0:00:27]} 16. Re1 {[%emt 0:01:11]} f5 {[%emt 0:04:09]} 17. Qe6 {[%emt 0:09:10]} Ndf6 {[%emt 0:00:45]} 18. Qc4 {[%emt 0:08:18]} Qxd6 {[%emt 0:06:29]} 19. Rh3 {[%emt 0:05:55]} b5 {[%emt 0:04:21]} 20. Nxb5 {[%emt 0:01:25]} Qb6 {[%emt 0:03:34]} 21. Rb3 {[%emt 0:03:18]} Ne4 {[%emt 0:08:33]} 22. Bg2 {[%emt 0:01:32]} Be6 {[%emt 0:02:45]} 23. Qf1 {[%emt 0:03:13]} Bxb3 {[%emt 0:00:25]} 24. axb3 {[%emt 0:00:01]} Rb8 {[%emt 0:04:56]} 25. Na3 {[%emt 0:00:39]} Ngf2 {[%emt 0:03:23]} 26. Bxe4 {[%emt 0:01:11]} Nxe4 {[%emt 0:00:10]} 27. Nf3 {[%emt 0:00:01]} Rd7 {[%emt 0:06:30]} 28. Nc4 {[%emt 0:00:21]} Qa6 {[%emt 0:01:01]} 29. Kb1 {[%emt 0:00:08]} Qf6 {[%emt 0:01:59]} 30. Nfe5 {[%emt 0:00:35]} Rdd8 {[%emt 0:03:06]} 31. Qg1 {[%emt 0:00:25]} Kg7 {[%emt 0:01:13]} 32. Re2 {[%emt 0:01:12]} g5 {[%emt 0:05:11]} 33. hxg5 {[%emt 0:00:30]} hxg5 {[%emt 0:00:12]} 34. fxg5 {[%emt 0:00:17]} Qe7 {[%emt 0:02:00]} 35. Rg2 {[%emt 0:01:00]} Nd2+ {[%emt 0:00:55]} 36. Ka2 {[%emt 0:00:36]} Qe6 {[%emt 0:00:12]} 37. Qxc5 {[%emt 0:00:04]} Qa6+ {[%emt 0:00:36]} 38. Na3 {[%emt 0:00:02]} Qe6 {[%emt 0:00:59]} 39. Qxa7+ {[%emt 0:00:24]} Kg8 {[%emt 0:00:22]} 40. Nd3 {[%emt 0:01:30]} Nxb3 {[%emt 0:00:34]} 41. cxb3 {[%emt 0:00:30]} Qxb3+ {[%emt 0:00:11]} 42. Ka1 {[%emt 0:00:31]} Rxd3 {[%emt 0:00:32]} 43. g6 {[%emt 0:00:15]} Qd1+ {[%emt 0:00:22]} 44. Nb1 $18 {[%emt 0:00:02]} Qb3 {[%emt 0:00:43]} 45. Qh7+ {[%emt 0:00:44]} Kf8 {[%emt 0:00:30]} 46. g7+ {[%emt 0:00:13]} 1-0

[Event "75th Argentine Women-ch 2024"]
[Site "Buenos Aires"]
[Date "2024.11.25"]
[Round "5.8"]
[White "Manzoni, Camila"]
[Black "Gaite, Karen Nerina"]
[Result "0-1"]
[ECO "D02"]
[WhiteElo "1521"]
[BlackElo "1997"]
[Annotator "RC"]
[PlyCount "42"]
[EventDate "2024.11.21"]
[EventType "swiss"]
[EventCountry "ARG"]
[SourceTitle "playchess.com"]
[Source "ChessBase"]
[SourceQuality "1"]
[TimeControl "5400+30"]

1. d4 {[%emt 0:00:05]} d5 {[%emt 0:00:06]} 2. Bf4 {[%emt 0:00:08]} c5 {[%emt 0:00:11]} 3. c3 {[%emt 0:00:13]} Nc6 {[%emt 0:00:21]} 4. Nf3 {[%emt 0:00:32]} Nf6 {[%emt 0:01:06]} 5. e3 {[%emt 0:01:14]} Bf5 {[%emt 0:00:53]} 6. Be2 {[%emt 0:01:00]} h6 {[%emt 0:00:21]} 7. O-O {[%emt 0:01:01]} e6 {[%emt 0:01:15]} 8. Nbd2 {[%emt 0:01:52]} Bd6 {[%emt 0:02:05]} 9. Bxd6 {[%emt 0:03:06]} Qxd6 {[%emt 0:00:09]} 10. c4 {[%emt 0:02:56]} cxd4 {[%emt 0:01:30]} 11. exd4 {[%emt 0:01:52]} O-O {[%emt 0:00:44]} 12. Re1 {[%emt 0:02:59]} Nb4 {[%emt 0:06:00]} 13. Rf1 {[%emt 0:03:26]} Rfd8 {[%emt 0:04:52]} 14. cxd5 {[%emt 0:03:00]} Qxd5 {[%emt 0:02:19]} 15. Nb3 {[%emt 0:02:25]} a5 {[%emt 0:03:31]} 16. a3 {[%emt 0:03:37]} Nc2 {[%emt 0:01:28]} 17. Rc1 {[%emt 0:07:40]} Qxb3 {[%emt 0:00:26]} 18. Ne1 {[%emt 0:01:44]} Nxd4 {[%emt 0:00:47]} 19. Bc4 {[%emt 0:12:17]} Qxd1 {[%emt 0:02:03]} 20. Rxd1 {[%emt 0:00:14]} b5 {[%emt 0:00:35]} 21. Ba2 {[%emt 0:00:28]} Ne2+ {[%emt 0:00:15]} 0-1